fUSD/lending_fUSD_20260421
["ID","MTS","AMOUNT","RATE_DAILY","PERIOD"]
[420909696,1776712244762,-150.0,0.00011147,2]
[420909697,1776712244771,-10128.2455604,0.00011163,2]
[420909698,1776712244781,-154.0,0.00011168,3]
[420909699,1776712244790,-20352.1710296,0.00011168,2]
[420909700,1776712244799,-150.0,0.00011197,2]
[420909701,1776712244809,-150.0,0.00011211,2]
[420909702,1776712244818,-150.0,0.00011211,2]
[420909703,1776712244828,-150.0,0.00011216,2]
[420909704,1776712244837,-764.3,0.0001122,2]
[420909705,1776712244847,-423.24,0.0001122,2]
[420909706,1776712244857,-548.22,0.0001122,2]
[420909707,1776712244866,-448.03,0.0001122,2]
[420909708,1776712244875,-169.19,0.0001122,2]
[420909709,1776712244885,-150.0,0.00011222,2]
[420909710,1776712244894,-150.0,0.0001123,2]
[420909711,1776712244903,-150.0,0.00011242,2]
[420909712,1776712244913,-747.8093786,0.00011292,2]
[420909713,1776712244922,-200.0,0.00011293,2]
[420909714,1776712244931,-150.0,0.00011296,2]
[420909715,1776712244940,-150.0,0.00011296,2]
[420909716,1776712244950,-150.0,0.00011296,2]
[420909717,1776712244959,-150.0,0.00011296,2]
[420909718,1776712244968,-150.0,0.00011296,2]
[420909719,1776712244977,-150.0,0.00011298,2]
[420909720,1776712244987,-2000.0,0.00011301,2]
[420909721,1776712244996,-150.0,0.0001135,2]
[420909722,1776712245006,-150.0,0.00011362,2]
[420909723,1776712245016,-150.0,0.0001137,2]
[420909724,1776712245027,-150.0,0.00011381,2]
[420909725,1776712245036,-150.0,0.00011381,2]
[420909726,1776712245045,-150.0,0.00011395,2]
[420909727,1776712245055,-150.0,0.00011445,2]
[420909728,1776712245064,-150.0,0.00011458,2]
[420909729,1776712245074,-150.0,0.00011466,2]
[420909730,1776712245083,-150.0,0.00011475,2]
[420909731,1776712245093,-5790.25962218,0.00011493,2]
[420909732,1776712245102,-150.0,0.00011494,2]
[420909733,1776712245112,-150.0,0.00011494,2]
[420909734,1776712245121,-150.0,0.00011494,2]
[420909735,1776712245131,-150.0,0.00011494,2]
[420909736,1776712245140,-5387.37,0.00011507,2]
[420909737,1776712245149,-2487.17,0.00011507,2]
[420909738,1776712245159,-150.0,0.00011519,2]
[420909739,1776712245169,-150.0,0.00011551,2]
[420909740,1776712245178,-150.0,0.00011551,2]
[420909741,1776712245187,-150.0,0.00011566,2]
[420909742,1776712245197,-294.10540746,0.00011571,2]
[420909743,1776712245206,-150.0,0.00011593,2]
[420909744,1776712245216,-150.0,0.00011593,2]
[420909745,1776712245225,-150.0,0.00011593,2]
[420909746,1776712245234,-150.0,0.00011598,2]
[420909747,1776712245243,-150.0,0.00011626,2]
[420909748,1776712245253,-150.0,0.00011636,2]
[420909749,1776712245263,-150.0,0.00011667,2]
[420909750,1776712245272,-150.0,0.00011674,2]
[420909751,1776712245282,-150.0,0.00011692,2]
[420909752,1776712245292,-150.0,0.00011721,2]
[420909753,1776712245301,-150.0,0.00011721,2]
[420909754,1776712245311,-150.0,0.00011742,2]
[420909755,1776712245320,-150.0,0.00011758,2]
[420909756,1776712245329,-470.086658,0.00011781,2]
[420909757,1776712245339,-150.0,0.00011782,2]
[420909758,1776712245348,-150.0,0.00011791,2]
[420909759,1776712245358,-1500.0,0.000118,2]
[420909760,1776712245368,-1141.58061712,0.000118,2]
[420909761,1776712245377,-150.0,0.00011805,2]
[420909762,1776712245387,-150.0,0.00011816,2]
[420909763,1776712245397,-150.0,0.00011826,2]
[420909764,1776712245406,-200.0,0.00011841,2]
[420909766,1776712245416,-6390.0,0.00011863,2]
[420909767,1776712245426,-53837.0,0.00011863,2]
[420909769,1776712245436,-225.89548749,0.0001189,2]
[420909770,1776712245445,-212.24017024,0.0001189,2]
[420909771,1776712245455,-262.64773087,0.0001189,2]
[420909772,1776712245464,-150.0,0.0001189,2]
[420909774,1776712245474,-194.22188174,0.0001189,2]
[420909776,1776712245483,-166.6255525,0.0001189,2]
[420909777,1776712245492,-176.6837889,0.0001189,2]
[420909778,1776712245502,-167.61615929,0.0001189,2]
[420909779,1776712245511,-298.96442628,0.0001189,2]
[420909780,1776712245522,-150.0,0.0001189,2]
[420909781,1776712245531,-173.69027534,0.0001189,2]
[420909782,1776712245541,-150.0,0.00011898,2]
[420909783,1776712245552,-600303.09954978,0.000119,3]
[420909784,1776712245561,-62012.03012367,0.000119,3]
[420909785,1776712245570,-14000.0,0.000119,4]
[420909786,1776712245580,-1600.0,0.00011934,2]
[420909787,1776712245589,-3614.446902,0.00011973,2]
[420909788,1776712245599,-3614.446902,0.00011973,2]
[420909789,1776712245608,-3614.446902,0.00011973,2]
[420909790,1776712245618,-3614.446902,0.00011973,2]
[420909791,1776712245628,-3614.446902,0.00011973,2]
[420909792,1776712245638,-3614.446902,0.00011973,2]
[420909799,1776712245647,-3614.446902,0.00011973,2]
[420909800,1776712246009,-3614.446902,0.00011973,2]
[420909801,1776712246019,-3614.446902,0.00011973,2]
[420909802,1776712246029,-3614.446902,0.00011973,2]
[420909803,1776712246038,-3614.446902,0.00011973,2]
[420909804,1776712246048,-3614.446902,0.00011973,2]
[420909805,1776712246058,-3614.446902,0.00011973,2]
[420909806,1776712246067,-3614.446902,0.00011973,2]
[420909807,1776712246077,-3614.446902,0.00011973,2]
[420909808,1776712246086,-3614.446902,0.00011973,2]
[420909809,1776712246096,-3614.446902,0.00011973,2]
[420909810,1776712246106,-3614.446902,0.00011973,2]
[420909811,1776712246115,-3614.446902,0.00011973,2]
[420909812,1776712246125,-3614.446906,0.00011973,2]
[420909813,1776712246135,-155.0,0.00011985,2]
[420909815,1776712246144,-65065.63331597,0.00012,2]
[420909817,1776712246154,-554.5,0.00012,2]
[420909818,1776712246165,-282.295467,0.00012009,2]
[420909819,1776712246175,-508.527265,0.00012011,2]
[420909821,1776712246184,-150.0,0.0001212,2]
[420909823,1776712246195,-150.0,0.0001216,2]
[420909825,1776712246204,-150.0,0.0001216,2]
[420909827,1776712246214,-150.0,0.0001216,2]
[420909828,1776712246223,-150.0,0.0001216,2]
[420909829,1776712246233,-150.0,0.0001216,2]
[420909830,1776712246242,-153.0,0.0001216,2]
[420909831,1776712246252,-154.0,0.00012163,3]
[420909832,1776712246262,-1048.0,0.0001218,2]
[420909833,1776712246271,-150.281,0.00012181,2]
[420909834,1776712246282,-927.0,0.00012181,2]
[420909835,1776712246291,-1219.0,0.00012181,2]
[420909836,1776712246301,-2474.0,0.00012181,2]
[420909838,1776712246311,-3780.0,0.00012181,2]
[420909840,1776712246320,-435.711222,0.00012196,2]
[420909842,1776712246330,-277.475536,0.00012196,2]
[420909844,1776712246339,-439.562631,0.00012196,2]
[420909846,1776712246349,-152.97,0.00012206,2]
[420909848,1776712246359,-13281.14735608,0.00012213,2]
[420909850,1776712246369,-250.0,0.0001228,2]
[420909852,1776712246379,-250.0,0.0001228,2]
[420909854,1776712246389,-250.0,0.0001228,2]
[420909856,1776712246398,-250.0,0.0001228,2]
[420909858,1776712246407,-250.0,0.0001228,2]
[420909859,1776712246417,-250.0,0.0001228,2]
[420909860,1776712246427,-250.0,0.0001228,2]
[420909861,1776712246438,-250.0,0.0001228,2]
[420909862,1776712246447,-250.0,0.0001228,2]
[420909863,1776712246457,-244.0,0.0001228,2]
[420909864,1776712246467,-2000.0,0.00012329,2]
[420909865,1776712246477,-200.0,0.00012389,2]
[420909866,1776712246487,-160.0,0.00012415,2]
[420909867,1776712246497,-150.0,0.0001242,2]
[420909868,1776712246506,-150.0,0.0001272,2]
[420909869,1776712246516,-268.0,0.00012747,2]
[420909870,1776712246525,-150.0,0.00012747,2]
[420909871,1776712246535,-171.0,0.00012747,2]
[420909872,1776712246544,-1576.0,0.00012893,2]
[420909873,1776712246554,-1576.0,0.00012893,2]
[420909874,1776712246564,-2817.0,0.00012893,2]
[420909875,1776712246574,-162.0,0.00012893,2]
[420909876,1776712246583,-2817.0,0.00012893,2]
[420909877,1776712246593,-162.0,0.00012893,2]
[420909878,1776712246603,-2817.0,0.00012893,2]
[420909879,1776712246612,-162.0,0.00012893,2]
[420909880,1776712246621,-2817.0,0.00012893,2]
[420909881,1776712246631,-2817.0,0.00012893,2]
[420909883,1776712246641,-2817.0,0.00012893,2]
[420909885,1776712246650,-1576.0,0.00012893,2]
[420909887,1776712246660,-1576.0,0.00012893,2]
[420909889,1776712246671,-246.0,0.00012893,2]
[420909891,1776712246681,-162.0,0.00012893,2]
[420909893,1776712246690,-2817.0,0.00012893,2]
[420909895,1776712246699,-162.0,0.00012893,2]
[420909897,1776712246709,-1576.0,0.00012893,2]
[420909899,1776712246718,-721.0,0.00012893,2]
[420909901,1776712246728,-1576.0,0.00012893,2]
[420909903,1776712246737,-1576.0,0.00012893,2]
[420909905,1776712246746,-1576.0,0.00012893,2]
[420909907,1776712246756,-1576.0,0.00012893,2]
[420909909,1776712246766,-1576.0,0.00012893,2]
[420909911,1776712246775,-200.0,0.00012937,2]
[420909913,1776712246785,-250.0,0.00013,2]
[420909916,1776712246794,-150.0,0.0001302,2]
[420909918,1776712246803,-150.0,0.0001305,2]
[420909920,1776712246812,-214.888183,0.00013051,2]
[420909922,1776712246823,-225.0,0.00013182,2]
[420909924,1776712246833,-213.38714215,0.000132,2]
[420909926,1776712246842,-450.0,0.0001322,2]
[420909928,1776712246852,-450.0,0.0001322,2]
[420909930,1776712246861,-450.0,0.0001322,2]
[420909931,1776712246871,-450.0,0.0001322,2]
[420909932,1776712246880,-450.0,0.0001322,2]
[420909933,1776712246891,-450.0,0.0001322,2]
[420909934,1776712246901,-450.0,0.0001322,2]
[420909935,1776712246912,-450.0,0.0001322,2]
[420909938,1776712246922,-450.0,0.0001322,2]
[420909940,1776712246932,-272.0,0.0001322,2]
[420909941,1776712246943,-150.0,0.0001332,2]
[420909942,1776712246952,-150.0,0.00013384,2]
[420909943,1776712246961,-150.0,0.00013384,2]
[420909944,1776712246972,-150.0,0.00013384,2]
[420909945,1776712246981,-173.0,0.00013384,2]
[420909946,1776712246990,-1576.0,0.000134,2]
[420909947,1776712246999,-2817.0,0.000134,2]
[420909948,1776712247009,-200.0,0.00013485,2]
[420909949,1776712247018,-150.0,0.0001362,2]
[420909950,1776712247027,-500.0,0.00013698,2]
[420909951,1776712247038,-500.0,0.00013698,2]
[420909952,1776712247048,-500.0,0.00013698,2]
[420909953,1776712247057,-500.0,0.00013698,2]
[420909954,1776712247068,-520.79521039,0.00013698,2]
[420909955,1776712247077,-500.0,0.00013698,2]
[420909956,1776712247087,-500.0,0.00013698,2]
[420909957,1776712247096,-500.0,0.00013698,2]
[420909958,1776712247106,-500.0,0.00013698,2]
[420909959,1776712247115,-478.0,0.00013698,2]
[420909960,1776712247124,-585.7,0.00013698,2]
[420909961,1776712247134,-585.7,0.00013698,2]
[420909962,1776712247144,-585.7,0.00013698,2]
[420909963,1776712247153,-585.7,0.00013698,2]
[420909964,1776712247163,-585.7,0.00013698,2]
[420909965,1776712247173,-585.7,0.00013698,2]
[420909966,1776712247182,-585.7,0.00013698,2]
[420909967,1776712247192,-585.7,0.00013698,2]
[420909968,1776712247202,-585.7,0.00013698,2]
[420909969,1776712247212,-585.7,0.00013698,2]
[420909970,1776712247221,-585.7,0.00013698,2]
[420909971,1776712247231,-566.04,0.00013698,2]
[420909972,1776712247240,-566.04,0.00013698,2]
[420909973,1776712247250,-566.04,0.00013698,2]
[420909974,1776712247259,-566.04,0.00013698,2]
[420909975,1776712247270,-566.04,0.00013698,2]
[420909976,1776712247279,-566.04,0.00013698,2]
[420909977,1776712247289,-566.04,0.00013698,2]
[420909978,1776712247298,-566.04,0.00013698,2]
[420909979,1776712247307,-566.04,0.00013698,2]
[420909980,1776712247316,-566.04,0.00013698,2]
[420909981,1776712247326,-566.04,0.00013698,2]
[420909982,1776712247335,-500.0,0.00013698,2]
[420909983,1776712247345,-500.0,0.00013698,2]
[420909984,1776712247354,-500.0,0.00013698,2]
[420909985,1776712247364,-500.0,0.00013698,2]
[420909986,1776712247373,-500.0,0.00013698,2]
[420909987,1776712247383,-500.0,0.00013698,2]
[420909988,1776712247392,-504.94915064,0.00013698,2]
[420909989,1776712247402,-500.0,0.00013698,2]
[420909990,1776712247411,-500.0,0.00013698,2]
[420909991,1776712247421,-500.0,0.00013698,2]
[420909992,1776712247431,-500.0,0.00013698,2]
[420909993,1776712247440,-500.0,0.00013698,2]
[420909994,1776712247449,-500.0,0.00013698,2]
[420909995,1776712247459,-500.0,0.00013698,2]
[420909996,1776712247468,-500.0,0.00013698,2]
[420909997,1776712247478,-500.0,0.00013698,2]
[420909998,1776712247488,-500.0,0.00013698,2]
[420909999,1776712247497,-500.0,0.00013698,2]
[420910000,1776712247507,-500.0,0.00013698,2]
[420910001,1776712247517,-500.0,0.00013698,2]
[420910002,1776712247527,-500.0,0.00013698,2]
[420910003,1776712247536,-500.0,0.00013698,2]
[420910004,1776712247546,-500.0,0.00013698,2]
[420910005,1776712247556,-500.0,0.00013698,2]
[420910006,1776712247566,-500.0,0.00013698,2]
[420910007,1776712247576,-500.0,0.00013698,2]
[420910008,1776712247585,-500.0,0.00013698,2]
[420910009,1776712247595,-500.0,0.00013698,2]
[420910010,1776712247605,-500.0,0.00013698,2]
[420910011,1776712247614,-500.0,0.00013698,2]
[420910012,1776712247624,-500.0,0.00013698,2]
[420910013,1776712247633,-510.69976852,0.00013698,2]
[420910014,1776712247643,-500.0,0.00013698,2]
[420910015,1776712247652,-500.0,0.00013698,2]
[420910016,1776712247661,-500.0,0.00013698,2]
[420910017,1776712247671,-507.64292634,0.00013698,2]
[420910018,1776712247681,-500.0,0.00013698,2]
[420910019,1776712247690,-500.0,0.00013698,2]
[420910020,1776712247699,-500.0,0.00013698,2]
[420910021,1776712247708,-500.0,0.00013698,2]
[420910022,1776712247718,-637.21346364,0.00013698,2]
[420910023,1776712247727,-500.0,0.00013698,2]
[420910024,1776712247736,-500.0,0.00013698,2]
[420910025,1776712247746,-500.0,0.00013698,2]
[420910026,1776712247755,-500.0,0.00013698,2]
[420910027,1776712247765,-500.0,0.00013698,2]
[420910028,1776712247775,-500.0,0.00013698,2]
[420910029,1776712247784,-362.54202018,0.00013698,2]
[420910030,1776712247793,-792.88,0.00013698,2]
[420910031,1776712247803,-792.88,0.00013698,2]
[420910032,1776712247812,-792.88,0.00013698,2]
[420910033,1776712247822,-792.88,0.00013698,2]
[420910034,1776712247831,-792.88,0.00013698,2]
[420910035,1776712247841,-792.88,0.00013698,2]
[420910036,1776712247850,-792.88,0.00013698,2]
[420910037,1776712247859,-792.88,0.00013698,2]
[420910038,1776712247869,-792.88,0.00013698,2]
[420910039,1776712247878,-792.88,0.00013698,2]
[420910040,1776712247887,-500.0,0.00013698,2]
[420910041,1776712247897,-506.24765238,0.00013698,2]
[420910042,1776712247907,-828.42,0.00013698,2]
[420910043,1776712247916,-828.42,0.00013698,2]
[420910044,1776712247926,-828.42,0.00013698,2]
[420910045,1776712247936,-828.42,0.00013698,2]
[420910046,1776712247946,-828.42,0.00013698,2]
[420910047,1776712247955,-828.42,0.00013698,2]
[420910048,1776712247965,-828.42,0.00013698,2]
[420910049,1776712247975,-828.42,0.00013698,2]
[420910050,1776712247984,-828.42,0.00013698,2]
[420910051,1776712247994,-828.42,0.00013698,2]
[420910052,1776712248003,-714.11,0.00013698,2]
[420910053,1776712248013,-714.11,0.00013698,2]
[420910054,1776712248022,-714.11,0.00013698,2]
[420910055,1776712248032,-714.11,0.00013698,2]
[420910056,1776712248041,-714.11,0.00013698,2]
[420910057,1776712248050,-714.11,0.00013698,2]
[420910058,1776712248059,-714.11,0.00013698,2]
[420910059,1776712248069,-714.11,0.00013698,2]
[420910060,1776712248078,-714.11,0.00013698,2]
[420910061,1776712248087,-714.11,0.00013698,2]
[420910062,1776712248097,-500.0,0.00013698,2]
[420910063,1776712248107,-500.0,0.00013698,2]
[420910064,1776712248116,-500.0,0.00013698,2]
[420910065,1776712248126,-500.0,0.00013698,2]
[420910066,1776712248136,-500.0,0.00013698,2]
[420910067,1776712248146,-500.0,0.00013698,2]
[420910068,1776712248155,-500.0,0.00013698,2]
[420910069,1776712248165,-500.0,0.00013698,2]
[420910070,1776712248174,-500.0,0.00013698,2]
[420910071,1776712248184,-500.0,0.00013698,2]
[420910072,1776712248194,-1378.37,0.00013698,2]
[420910073,1776712248203,-1378.37,0.00013698,2]
[420910074,1776712248213,-1378.37,0.00013698,2]
[420910075,1776712248222,-1378.37,0.00013698,2]
[420910076,1776712248232,-1378.37,0.00013698,2]
[420910077,1776712248241,-1378.37,0.00013698,2]
[420910078,1776712248251,-1378.37,0.00013698,2]
[420910079,1776712248261,-1378.37,0.00013698,2]
[420910080,1776712248271,-1378.37,0.00013698,2]
[420910081,1776712248280,-1378.37,0.00013698,2]
[420910082,1776712248290,-500.0,0.00013698,2]
[420910083,1776712248300,-500.0,0.00013698,2]
[420910084,1776712248309,-500.0,0.00013698,2]
[420910085,1776712248477,-500.0,0.00013698,2]
[420910086,1776712248487,-500.0,0.00013698,2]
[420910087,1776712248497,-370.0,0.00013698,2]
[420910088,1776712248507,-500.0,0.00013698,2]
[420910089,1776712248516,-500.0,0.00013698,2]
[420910090,1776712248526,-500.0,0.00013698,2]
[420910091,1776712248535,-500.0,0.00013698,2]
[420910092,1776712248545,-500.0,0.00013698,2]
[420910093,1776712248554,-500.0,0.00013698,2]
[420910094,1776712248563,-500.0,0.00013698,2]
[420910095,1776712248573,-500.0,0.00013698,2]
[420910096,1776712248582,-500.0,0.00013698,2]
[420910097,1776712248592,-500.0,0.00013698,2]
[420910098,1776712248601,-500.0,0.00013698,2]
[420910099,1776712248611,-500.0,0.00013698,2]
[420910100,1776712248620,-500.0,0.00013698,2]
[420910101,1776712248630,-500.0,0.00013698,2]
[420910102,1776712248639,-500.0,0.00013698,2]
[420910103,1776712248648,-500.0,0.00013698,2]
[420910104,1776712248658,-500.0,0.00013698,2]
[420910105,1776712248668,-500.0,0.00013698,2]
[420910106,1776712248678,-450.69,0.00013698,2]
[420910107,1776712248688,-2176.2,0.00013698,2]
[420910108,1776712248698,-2176.2,0.00013698,2]
[420910109,1776712248708,-2176.2,0.00013698,2]
[420910110,1776712248717,-2176.2,0.00013698,2]
[420910111,1776712248726,-2176.2,0.00013698,2]
[420910112,1776712248736,-2176.2,0.00013698,2]
[420910113,1776712248745,-2176.2,0.00013698,2]
[420910114,1776712248755,-2176.2,0.00013698,2]
[420910115,1776712248764,-2176.2,0.00013698,2]
[420910116,1776712248773,-2176.2,0.00013698,2]
[420910117,1776712248783,-500.0,0.00013698,2]
[420910118,1776712248793,-533.5,0.00013698,2]
[420910119,1776712248803,-500.0,0.00013698,2]
[420910120,1776712248812,-500.0,0.00013698,2]
[420910121,1776712248822,-500.0,0.00013698,2]
[420910122,1776712248831,-500.0,0.00013698,2]
[420910123,1776712248841,-500.0,0.00013698,2]
[420910124,1776712248850,-500.0,0.00013698,2]
[420910125,1776712248859,-500.0,0.00013698,2]
[420910126,1776712248868,-500.0,0.00013698,2]
[420910127,1776712248877,-500.0,0.00013698,2]
[420910128,1776712248886,-500.0,0.00013698,2]
[420910129,1776712248896,-500.0,0.00013698,2]
[420910130,1776712248905,-500.0,0.00013698,2]
[420910131,1776712248915,-507.9500982,0.00013698,2]
[420910132,1776712248924,-531.69,0.00013698,2]
[420910133,1776712248934,-531.69,0.00013698,2]
[420910134,1776712248943,-531.69,0.00013698,2]
[420910135,1776712248953,-531.69,0.00013698,2]
[420910136,1776712248962,-531.69,0.00013698,2]
[420910137,1776712248972,-531.69,0.00013698,2]
[420910138,1776712248981,-531.69,0.00013698,2]
[420910139,1776712248990,-531.69,0.00013698,2]
[420910140,1776712248999,-531.69,0.00013698,2]
[420910141,1776712249009,-531.69,0.00013698,2]
[420910142,1776712249018,-500.0,0.00013698,2]
[420910143,1776712249027,-500.0,0.00013698,2]
[420910144,1776712249037,-500.0,0.00013698,2]
[420910145,1776712249046,-511.36,0.00013698,2]
[420910146,1776712249056,-500.0,0.00013699,2]
[420910147,1776712249066,-500.0,0.00013699,2]
[420910148,1776712249075,-500.0,0.00013699,2]
[420910149,1776712249084,-500.0,0.00013699,2]
[420910150,1776712249094,-7156.2,0.00013699,2]
[420910151,1776712249103,-200.0,0.00013699,2]
[420910152,1776712249112,-151.0,0.00013699,2]
[420910153,1776712249123,-151.0,0.00013699,2]
[420910154,1776712249132,-151.0,0.00013699,2]
[420910155,1776712249141,-151.0,0.00013699,2]
[420910156,1776712249150,-151.0,0.00013699,2]
[420910157,1776712249159,-151.0,0.00013699,2]
[420910158,1776712249169,-151.0,0.00013699,2]
[420910159,1776712249178,-151.0,0.00013699,2]
[420910160,1776712249187,-151.0,0.00013699,2]
[420910161,1776712249197,-151.0,0.00013699,2]
[420910162,1776712249206,-151.0,0.00013699,2]
[420910163,1776712249217,-151.0,0.00013699,2]
[420910164,1776712249226,-151.0,0.00013699,2]
[420910165,1776712249236,-153.004958,0.00013699,2]
[420910166,1776712249245,-166.66,0.00013699,2]
[420910167,1776712249254,-1431.016224,0.00013699,2]
[420910168,1776712249263,-799.498945,0.00013699,2]
[420910169,1776712249273,-799.498945,0.00013699,2]
[420910170,1776712249283,-799.498945,0.00013699,2]
[420910171,1776712249292,-799.498945,0.00013699,2]
[420910172,1776712249301,-799.498945,0.00013699,2]
[420910173,1776712249310,-799.498945,0.00013699,2]
[420910174,1776712249320,-799.498945,0.00013699,2]
[420910175,1776712249329,-799.498945,0.00013699,2]
[420910176,1776712249339,-799.498945,0.00013699,2]
[420910177,1776712249348,-799.498945,0.00013699,2]
[420910178,1776712249358,-799.498945,0.00013699,2]
[420910179,1776712249368,-799.498945,0.00013699,2]
[420910180,1776712249377,-799.498945,0.00013699,2]
[420910181,1776712249386,-799.498945,0.00013699,2]
[420910182,1776712249395,-799.498945,0.00013699,2]
[420910183,1776712249404,-799.498945,0.00013699,2]
[420910184,1776712249414,-799.498945,0.00013699,2]
[420910185,1776712249423,-799.498945,0.00013699,2]
[420910186,1776712249432,-799.498945,0.00013699,2]
[420910187,1776712249442,-799.498954,0.00013699,2]
[420910188,1776712249451,-787.383514,0.00013699,2]
[420910189,1776712249461,-787.383514,0.00013699,2]
[420910190,1776712249471,-787.383514,0.00013699,2]
[420910191,1776712249480,-787.383514,0.00013699,2]
[420910192,1776712249490,-787.383514,0.00013699,2]
[420910193,1776712249499,-787.383514,0.00013699,2]
[420910194,1776712249509,-787.383514,0.00013699,2]
[420910195,1776712249519,-787.383514,0.00013699,2]
[420910196,1776712249529,-787.383514,0.00013699,2]
[420910197,1776712249540,-787.383514,0.00013699,2]
[420910198,1776712249550,-787.383514,0.00013699,2]
[420910199,1776712249559,-787.383514,0.00013699,2]
[420910200,1776712249568,-787.383514,0.00013699,2]
[420910201,1776712249578,-787.383514,0.00013699,2]
[420910202,1776712249587,-787.383514,0.00013699,2]
[420910203,1776712249596,-787.383514,0.00013699,2]
[420910204,1776712249606,-787.383514,0.00013699,2]
[420910205,1776712249616,-787.383514,0.00013699,2]
[420910206,1776712249625,-787.383514,0.00013699,2]
[420910207,1776712249634,-787.383506,0.00013699,2]
[420910208,1776712249643,-151.0,0.00013699,2]
[420910209,1776712249653,-151.0,0.00013699,2]
[420910210,1776712249662,-151.0,0.00013699,2]
[420910211,1776712249671,-151.0,0.00013699,2]
[420910212,1776712249681,-151.0,0.00013699,2]
[420910213,1776712249690,-153.18588,0.00013699,2]
[420910214,1776712249699,-500.0,0.00013699,2]
[420910215,1776712249708,-500.0,0.00013699,2]
[420910216,1776712249718,-500.0,0.00013699,2]
[420910217,1776712249727,-500.0,0.00013699,2]
[420910218,1776712249737,-500.0,0.00013699,2]
[420910219,1776712249746,-500.0,0.00013699,2]
[420910220,1776712249755,-24931.06,0.00013699,2]
[420910221,1776712249764,-9999.99,0.00013699,2]
[420910222,1776712249773,-153.0,0.00013699,2]
[420910223,1776712249783,-153.0,0.00013699,2]
[420910224,1776712249792,-153.0,0.00013699,2]
[420910225,1776712249801,-172.61273518,0.00013699,2]
[420910226,1776712249810,-241.64340166,0.00013699,2]
[420910227,1776712249819,-153.0,0.00013699,2]
[420910228,1776712249829,-500.0,0.00013699,2]
[420910229,1776712249838,-385.40262475,0.00013699,2]
[420910230,1776712249848,-1403.0,0.00013699,2]
[420910231,1776712249857,-1403.0,0.00013699,2]
[420910232,1776712249867,-1403.0,0.00013699,2]
[420910233,1776712249877,-1403.0,0.00013699,2]
[420910234,1776712249887,-1403.0,0.00013699,2]
[420910235,1776712249896,-1403.0,0.00013699,2]
[420910236,1776712249906,-1403.0,0.00013699,2]
[420910237,1776712249915,-1403.0,0.00013699,2]
[420910238,1776712249925,-1403.0,0.00013699,2]
[420910239,1776712249934,-1403.0,0.00013699,2]
[420910240,1776712249943,-1403.0,0.00013699,2]
[420910241,1776712249953,-1403.0,0.00013699,2]
[420910242,1776712249962,-1403.0,0.00013699,2]
[420910243,1776712249972,-1403.0,0.00013699,2]
[420910244,1776712249981,-1403.0,0.00013699,2]
[420910245,1776712249991,-1403.0,0.00013699,2]
[420910246,1776712250000,-1403.0,0.00013699,2]
[420910247,1776712250010,-1403.0,0.00013699,2]
[420910248,1776712250019,-1403.0,0.00013699,2]
[420910249,1776712250028,-1403.0,0.00013699,2]
[420910250,1776712250038,-1403.0,0.00013699,2]